Cogmind - Beta 10.2 @@@ ROGUE MODE // 2022.01.16 @ 02:47:12 Player: Nomad Result: Destroyed by S-10 Pest with Light Assault Rifle Performance ------------- Evolutions (1) 500 Regions Visited (2) 400 Robots Destroyed (11) 55 Value Destroyed (212) 212 Prototype IDs (0) 0 Alien Tech Used (0) 0 Bonus (0) 0 TOTAL SCORE: 1167 Bonus ------- None Cogmind --------- Core Integrity 0/400 Matter 300/300 Energy 100/100 System Corruption 2% Temperature Cool (0) Movement Core (100) Ox1 Location -9/Materials Parts ------- > --- POWER (2) -------- (None) > --- PROPULSION (3) --- (None) > --- UTILITY (2) ------ Small Storage Unit Power Shielding > --- WEAPON (2) ------- (None) > --- INVENTORY (6) ---- Compact Wheel Heat Sink Terrain Scan Processor Peak State ------------ > --- POWER ------------ Ion Engine > --- PROPULSION ------- Light Treads Light Treads > --- UTILITY ---------- Small Storage Unit Power Shielding > --- WEAPON ----------- Plasma Cutter > --- INVENTORY -------- Compact Wheel Heat Sink Terrain Scan Processor [Rating: 7] Favorites ----------- Power Light Ion Engine Engine Light Ion Engine Propulsion Aluminum Leg Treads Light Treads Leg Aluminum Leg Utility Small Storage Unit Storage Small Storage Unit Protection Power Shielding Weapon Light Assault Rifle Energy Gun Medium Laser Ballistic Gun Light Assault Rifle Special Weapon Plasma Cutter Build | -11 -10 -9 ------- Run | Scr Mat Mat Slots Evolved 2 | . . 2 Power 1 | . . 1 Propulsion 1 | . . 1 Utility . | . . . Weapon . | . . . Parts Attached 28 | 6 18 4 Power 3 | 1 1 1 Engine 3 | 1 1 1 Core . | . . . Reactor . | . . . Propulsion 12 | 2 8 2 Treads 2 | . . 2 Leg 10 | 2 8 . Wheel . | . . . Hover . | . . . Flight . | . . . Utility 3 | 1 2 . Device . | . . . Storage 2 | 1 1 . Processor . | . . . Hackware . | . . . Protection 1 | . 1 . Artifact . | . . . Weapon 10 | 2 7 1 Energy Gun 5 | 1 4 . Energy Cannon . | . . . Ballistic Gun 4 | 1 3 . Ballistic Cannon . | . . . Launcher . | . . . Special Weapon 1 | . . 1 Impact Weapon . | . . . Slashing Weapon . | . . . Piercing Weapon . | . . . Special Melee Weapon . | . . . Unidentified Prototypes . | . . . Parts Lost 10 | . 6 4 Power 2 | . 1 1 Propulsion 4 | . 2 2 Utility . | . . . Weapon 4 | . 3 1 Highest Loss Streak 5 | . 5 4 Average Slot Usage (%) 58 | . 71 33 Engine 12 | . 13 9 Leg 16 | . 25 . Storage 8 | . 6 11 Protection 4 | . 1 11 Energy Gun 6 | . 10 . Ballistic Gun 8 | . 13 . Naked Turns . | . . . Heaviest Build 11 | 6 9 11 Greatest Support 3 | 3 3 3 Greatest Overweight (x) 3 | 1 2 3 Average Overweight (x) 1 | . 1 2 Largest Inventory Capacity 6 | 6 6 6 Average Capacity 5 | 4 4 6 Most Carried 6 | 2 6 5 Average Carried 1 | . 1 2 Final Capacity 6 | 4 6 6 Final Carried 3 | 1 2 3 Class Distribution -------------------- 100% | Mutant Dominant Class ---------------- Mutant | -10/Materials Mutant | -9/Materials Resources | -11 -10 -9 ----------- Run | Scr Mat Mat Matter Collected 445 | 212 210 23 Remotely . | . . . Salvage Created 271 | . 212 59 Parts 28 | . 17 11 Haulers Intercepted . | . . . Recyclers Shooed . | . . . Parts Field Recycled . | . . . Retrieved Matter . | . . . Parts Self-Destructed . | . . . Prevented . | . . . Kills | -11 -10 -9 ------- Run | Scr Mat Mat Combat Hostiles Destroyed 10 | . 7 3 Melee 3 | . . 3 Guns 7 | . 7 . Classes Destroyed 3 | . 3 . Watcher 1 | . 1 . Swarmer 6 | . 3 3 Grunt 4 | . 4 . Best Kill Streak 3 | . 3 3 Combat Bots Only 3 | . 3 3 Max Kills in Single Turn 1 | . 1 1 Gunslinging . | . . . Exploded . | . . . Melee 1 | . . 1 Uniques/NPCs Destroyed . | . . . Combat | -11 -10 -9 -------- Run | Scr Mat Mat Damage Taken 1487 | . 612 875 Core 571 | . 167 404 Absorbed by Shields . | . . . Core Remaining (%) 66 | 100 33 . Volleys Fired 41 | . 41 . Largest 2 | . 2 . Hottest 70 | . 70 . Shots Fired 70 | . 70 . Gun 70 | . 70 . Cannon . | . . . Launcher . | . . . Special . | . . . Kinetic 48 | . 48 . Thermal 22 | . 22 . Explosive . | . . . Electromagnetic . | . . . Robot Hit Streak 6 | . 6 . Robot Miss Streak 6 | . 6 . Penetration Max . | . . . Secondary Targets . | . . . Shots Hit Robots 45 | . 45 . Core Hits 27 | . 18 9 Critical Hits . | . . . Critical Kills . | . . . Critical Parts Destroyed . | . . . Melee Attacks . | . . . Impact . | . . . Slashing . | . . . Piercing . | . . . Sneak Attacks . | . . . Combat Hostiles . | . . . Follow-up Attacks . | . . . Damage Inflicted 412 | . 371 41 Guns 368 | . 368 . Cannons . | . . . Explosions . | . . . Melee . | . . . Ramming 44 | . 3 41 Kinetic 217 | . 217 . Thermal 151 | . 151 . Explosive . | . . . Electromagnetic . | . . . Impact . | . . . Slashing . | . . . Piercing . | . . . Highest Corruption 2 | . . 2 Average Corruption 2 | . . 2 Corruption Purged . | . . . Effects 1 | . . 1 Message Errors 1 | . . 1 Overload Shots . | . . . Overflow Damage . | . . . Projectiles . | . . . Explosions . | . . . Melee . | . . . Knockbacks . | . . . Impact . | . . . Kinetic . | . . . Secondary . | . . . Self-Inflicted Damage 19 | . 1 18 Shots . | . . . Rammed 18 | . 3 15 Targets Rammed 18 | . 3 15 Kicked . | . . . Crushed . | . . . Highest Temperature 58 | . 58 . Average Temperature 13 | . 13 . Received Heat Transfer 399 | . 303 96 Siege Activations . | . . . Robots Corrupted . | . . . Combat Hostiles . | . . . Parts Fried . | . . . Impact Corruptions . | . . . Robots Melted . | . . . Combat Hostiles . | . . . Parts Melted . | . . . Heat Transferred 444 | . 444 . Parts Sabotaged . | . . . Parts Stolen . | . . . Parts Stripped . | . . . Power Chain Reactions . | . . . Missiles Intercepted . | . . . Alert | -11 -10 -9 ------- Run | Scr Mat Mat Peak Influence 212 | . 212 170 Initial . | . . . Average 54 | . 72 30 Maximum Alert Level 1 | . 1 . Low Security (%) 98 | 100 97 100 Level 1 1 | . 2 . Level 2 . | . . . Level 3 . | . . . Level 4 . | . . . Level 5 . | . . . High Security . | . . . Max Security . | . . . Squads Dispatched 2 | . 2 . Investigation . | . . . Extermination . | . . . Reinforcement 2 | . 2 . Assault . | . . . Garrison . | . . . Intercept . | . . . Construction Impeded . | . . . Haulers Reinforced . | . . . Stealth | -11 -10 -9 --------- Run | Scr Mat Mat Distress Signals 3 | . 1 2 Communications Jammed . | . . . Distress Signals . | . . . Times Spotted 36 | . 18 18 Peak Tracking Total 15 | . 4 15 Tactical Retreats 4 | . . 4 Traps | -11 -10 -9 ------- Run | Scr Mat Mat Traps Triggered 4 | . 4 . Indirectly . | . . . Trap Hack Attempts . | . . . Triggered . | . . . Disarmed . | . . . Reprogrammed . | . . . Reused . | . . . Traps Extracted . | . . . Installed . | . . . Triggered . | . . . Machines | -11 -10 -9 ---------- Run | Scr Mat Mat Machines Disabled . | . . . Max in Single Turn . | . . . Machines Sabotaged . | . . . Garrisons Compromised . | . . . Overloaded Fab Kills . | . . . Fab Network Shutdowns . | . . . Hacking | -11 -10 -9 --------- Run | Scr Mat Mat Machines Accessed 2 | . 1 1 Terminals 2 | . 1 1 Fabricators . | . . . Repair Stations . | . . . Recycling Units . | . . . Scanalyzers . | . . . Garrison Access . | . . . Total Hacks 3 | . 2 1 Successful 1 | . 1 . Failed 2 | . 1 1 Catastrophic . | . . . Database Lockouts . | . . . Manual . | . . . Terminals 3 | . 2 1 Fabricators . | . . . Repair Stations . | . . . Recycling Units . | . . . Scanalyzers . | . . . Garrison Access . | . . . Terminal Hacks 1 | . 1 . Record 1 | . 1 . Fabricator Hacks . | . . . Repair Station Hacks . | . . . Recycling Unit Hacks . | . . . Scanalyzer . | . . . Garrison Access Hacks . | . . . Unauthorized Hacks . | . . . Terminals . | . . . Fabricators . | . . . Repair Stations . | . . . Recycling Units . | . . . Scanalyzers . | . . . Garrison Access . | . . . Data Cores Recovered . | . . . Used . | . . . Hacking Detections 1 | . 1 . Full Trace Events . | . . . Feedback Events . | . . . Feedback Blocked . | . . . Robot Schematics Acquired . | . . . Robots Built . | . . . Matter . | . . . Time . | . . . Total Robot Build Rating . | . . . Part Schematics Acquired . | . . . Parts Built . | . . . Matter . | . . . Time . | . . . Total Part Build Rating . | . . . Parts Repaired . | . . . Time . | . . . Parts Recycled . | . . . Recycled Matter . | . . . Retrieved Matter . | . . . Retrieved Components . | . . . Parts Scanalyzed . | . . . Part Schematics Acquired . | . . . Parts Damaged . | . . . Bothacking | -11 -10 -9 ------------ Run | Scr Mat Mat Used RIF Installer . | . . . Robots Hacked . | . . . Non-combat . | . . . Combat . | . . . Robot Hacks Applied . | . . . Relay Couplers Released . | . . . Robots Rewired . | . . . Allies Hacked . | . . . Hacks Repelled . | . . . Allies | -11 -10 -9 -------- Run | Scr Mat Mat Total Allies . | . . . Largest Group . | . . . Highest-Rated Group . | . . . Highest-Rated Ally . | . . . Total Orders . | . . . Ally Attacks . | . . . Total Damage . | . . . Kills . | . . . Allies Corrupted . | . . . Allies Melted . | . . . Intel | -11 -10 -9 ------- Run | Scr Mat Mat Robot Analysis Total . | . . . Derelict Logs Recovered . | . . . Drone Launches . | . . . Drone Recoveries . | . . . Exploration | -11 -10 -9 ------------- Run | Scr Mat Mat Turns Passed 1011 | 55 631 325 Spaces Moved 583 | 48 363 172 Core 583 | 48 363 172 Treads . | . . . Legs . | . . . Wheels . | . . . Hover . | . . . Flight . | . . . Fastest Speed 50 | 50 100 100 Average Speed 133 | 85 119 174 Slowest Speed 200 | 100 150 200 Overloaded Moves . | . . . Propulsion Burnouts . | . . . Robots Hopped . | . . . Cave-ins Triggered . | . . . Exploration Rate (%) 26 | 4 51 24 Regions Visited 2 Branch Regions . Pre-discovered Areas . | . . . Known Exits Taken . | . . . Unknown Exits Taken 2 | 1 1 . Scrap Searched . | . . . Spaces Dug . | . . . Terrain Destroyed . | . . . Melee . | . . . Projectile . | . . . AOE . | . . . Terrain Rammed . | . . . Walls Destroyed . | . . . Machines Disabled . | . . . Actions | -11 -10 -9 --------- Run | Scr Mat Mat Total 757 | 62 499 196 Wait 52 | . 52 . Move 581 | 47 362 172 Hop . | . . . Pick Up 31 | 7 19 5 Fast Attach . | . . . Attach 28 | 6 18 4 Detach 1 | 1 . . Swap . | . . . Drop 5 | 1 4 . Fire 41 | . 41 . Melee . | . . . Ram 18 | . 3 15 Kick . | . . . Crush . | . . . Escape Stasis . | . . . Rewire . | . . . Trap . | . . . Miscellaneous . | . . . Route ------- -11/Scrapyard -10/Materials -9/Materials (discovered 1 exit: [*Min]) History --------- Turn | Location | Event 12 | -11/Scrapyard | Discovered new exit (range 14) 56 | -11/Scrapyard | Entered Materials 239 | -10/Materials | Discovered new exit (range 14) 309 | -10/Materials | Build established: Mutant 682 | -10/Materials | Core integrity fell below 50% 687 | -10/Materials | Entered another Materials area 687 | -9/Materials | Evolved 2 slots: Power x1, Propulsion x1 714 | -9/Materials | Lost 5 parts (1p2n2w) 939 | -9/Materials | Discovered new exit (range 7) 981 | -9/Materials | Core integrity fell below 50% 1002 | -9/Materials | Lost 4 parts (1p2n1w) 1009 | -9/Materials | Core integrity fell below 20% 1012 | -9/Materials | Destroyed by S-10 Pest with Light Assault Rifle Last Messages --------------- S-10 Pest destroyed. [Achievement: Fist Fight] Destabilizing: System corrupted (+2). Acquired 20 matter. Ion Engine destroyed. Slammed into S-10 Pest. Slammed into W-16 Scout. W-16 Scout sends out distress signal. Slammed into W-16 Scout. Slammed into S-10 Pest. S-10 Pest destroyed. Acquired 3 matter. Slammed into S-10 Pest. V2XWJ8Y|>1ZEHJZAIVX%PPW 5 C/8NL WS